fUSD/lending_fUSD_20250725
["ID","MTS","AMOUNT","RATE_DAILY","PERIOD"]
[374980411,1753487447142,-2603.89,0.00021917,2]
[374980412,1753487447152,-480.0,0.00021917,2]
[374980413,1753487447162,-1600.96,0.00021917,2]
[374980414,1753487447172,-400.0,0.00021917,2]
[374980415,1753487447182,-400.0,0.00021917,2]
[374980416,1753487447193,-759.33,0.00021917,2]
[374980417,1753487447203,-500.0,0.00021917,2]
[374980418,1753487447212,-546.88,0.00021917,2]
[374980419,1753487447222,-400.0,0.00021917,2]
[374980420,1753487447231,-2074.98,0.00021917,2]
[374980421,1753487447240,-400.0,0.00021917,2]
[374980422,1753487447501,-345.15860224,0.00021917,2]
[374980423,1753487447511,-609.72,0.00021917,2]
[374980424,1753487447520,-400.0,0.00021917,2]
[374980425,1753487447530,-400.0,0.00021917,2]
[374980426,1753487447539,-405.74,0.00021917,2]
[374980427,1753487447549,-400.0,0.00021917,2]
[374980428,1753487447559,-2601.59,0.00021917,2]
[374980429,1753487447568,-400.0,0.00021917,2]
[374980430,1753487447577,-849.72,0.00021917,2]
[374980431,1753487447587,-1189.05,0.00021917,2]
[374980432,1753487447596,-400.0,0.00021917,2]
[374980433,1753487447606,-907.22,0.00021917,2]
[374980434,1753487447615,-400.0,0.00021917,2]
[374980435,1753487447626,-400.0,0.00021917,2]
[374980436,1753487447636,-1335.9,0.00021917,2]
[374980437,1753487447645,-400.0,0.00021917,2]
[374980438,1753487447655,-400.0,0.00021917,2]
[374980439,1753487447664,-741.09,0.00021917,2]
[374980440,1753487447674,-400.0,0.00021917,2]
[374980441,1753487447684,-400.0,0.00021917,2]
[374980442,1753487447693,-1042.56,0.00021917,2]
[374980443,1753487447703,-400.0,0.00021917,2]
[374980444,1753487447712,-218.93898883,0.00021917,2]
[374980445,1753487447722,-400.0,0.00021917,2]
[374980446,1753487447731,-400.0,0.00021917,2]
[374980447,1753487447741,-400.0,0.00021917,2]
[374980448,1753487447750,-400.0,0.00021917,2]
[374980449,1753487447761,-400.0,0.00021917,2]
[374980450,1753487447770,-400.0,0.00021917,2]
[374980451,1753487447780,-918.15,0.00021917,2]
[374980452,1753487447789,-400.0,0.00021917,2]
[374980453,1753487447799,-400.0,0.00021917,2]
[374980454,1753487447810,-400.0,0.00021917,2]
[374980455,1753487447820,-831.11,0.00021917,2]
[374980456,1753487447830,-400.0,0.00021917,2]
[374980457,1753487447840,-400.0,0.00021917,2]
[374980458,1753487447851,-490.9,0.00021917,2]
[374980459,1753487447860,-406.85,0.00021917,2]
[374980460,1753487447870,-733.73,0.00021917,2]
[374980461,1753487447880,-400.0,0.00021917,2]
[374980462,1753487447889,-400.0,0.00021917,2]
[374980463,1753487447899,-735.57,0.00021917,2]
[374980464,1753487447909,-400.0,0.00021917,2]
[374980465,1753487447918,-400.0,0.00021917,2]
[374980466,1753487447928,-810.46,0.00021917,2]
[374980467,1753487447937,-400.0,0.00021917,2]
[374980468,1753487447947,-2641.82,0.00021917,2]
[374980469,1753487447956,-400.0,0.00021917,2]
[374980470,1753487447966,-319.54189136,0.00021917,2]
[374980471,1753487447975,-1278.11,0.00021917,2]
[374980472,1753487447985,-516.34,0.00021917,2]
[374980473,1753487447994,-400.0,0.00021917,2]
[374980474,1753487448004,-400.0,0.00021917,2]
[374980475,1753487448013,-436.59,0.00021917,2]
[374980476,1753487448023,-1893.55,0.00021917,2]
[374980477,1753487448033,-2354.01,0.00021917,2]
[374980478,1753487448047,-993.64,0.00021917,2]
[374980479,1753487448058,-698.61,0.00021917,2]
[374980480,1753487448067,-2125.88,0.00021917,2]
[374980481,1753487448077,-400.0,0.00021917,2]
[374980482,1753487448086,-504.55,0.00021917,2]
[374980483,1753487448096,-400.0,0.00021917,2]
[374980484,1753487448105,-1284.54,0.00021917,2]
[374980485,1753487448115,-1820.31,0.00021917,2]
[374980486,1753487448124,-400.0,0.00021917,2]
[374980487,1753487448134,-400.0,0.00021917,2]
[374980488,1753487448143,-400.0,0.00021917,2]
[374980489,1753487448152,-718.08,0.00021917,2]
[374980490,1753487448162,-480.61584295,0.00021917,2]
[374980491,1753487448172,-400.0,0.00021917,2]
[374980492,1753487448181,-400.0,0.00021917,2]
[374980493,1753487448191,-1496.55,0.00021917,2]
[374980494,1753487448201,-511.68,0.00021917,2]
[374980495,1753487448211,-400.0,0.00021917,2]
[374980496,1753487448220,-1246.08,0.00021917,2]
[374980497,1753487448230,-400.0,0.00021917,2]
[374980498,1753487448239,-1255.93,0.00021917,2]
[374980499,1753487448249,-400.0,0.00021917,2]
[374980500,1753487448259,-962.55,0.00021917,2]
[374980501,1753487448269,-424.14,0.00021917,2]
[374980502,1753487448278,-400.0,0.00021917,2]
[374980503,1753487448288,-400.0,0.00021917,2]
[374980504,1753487448298,-947.66,0.00021917,2]
[374980505,1753487448307,-400.0,0.00021917,2]
[374980506,1753487448317,-1155.85,0.00021917,2]
[374980507,1753487448326,-489.01,0.00021917,2]
[374980508,1753487448336,-400.0,0.00021917,2]
[374980509,1753487448346,-400.0,0.00021917,2]
[374980510,1753487448356,-2412.77,0.00021917,2]
[374980511,1753487448365,-400.0,0.00021917,2]
[374980512,1753487448375,-400.0,0.00021917,2]
[374980513,1753487448385,-400.0,0.00021917,2]
[374980514,1753487448395,-400.0,0.00021917,2]
[374980515,1753487448404,-400.0,0.00021917,2]
[374980516,1753487448413,-400.0,0.00021917,2]
[374980517,1753487448424,-1314.21,0.00021917,2]
[374980518,1753487448434,-400.0,0.00021917,2]
[374980519,1753487448443,-878.15,0.00021917,2]
[374980520,1753487448452,-400.0,0.00021917,2]
[374980521,1753487448463,-400.0,0.00021917,2]
[374980522,1753487448473,-400.0,0.00021917,2]
[374980523,1753487448482,-2534.37,0.00021917,2]
[374980524,1753487448492,-519.68,0.00021917,2]
[374980525,1753487448501,-400.0,0.00021917,2]
[374980526,1753487448510,-1364.87,0.00021917,2]
[374980527,1753487448520,-446.03,0.00021917,2]
[374980528,1753487448533,-400.0,0.00021917,2]
[374980529,1753487448543,-400.0,0.00021917,2]
[374980530,1753487448552,-1029.09,0.00021917,2]
[374980531,1753487448562,-400.0,0.00021917,2]
[374980532,1753487448572,-222.82698033,0.00021917,2]
[374980533,1753487448583,-400.0,0.00021917,2]
[374980534,1753487448593,-500.0,0.00021917,2]
[374980535,1753487448604,-400.0,0.00021917,2]
[374980536,1753487448614,-500.0,0.00021917,2]
[374980537,1753487448624,-400.0,0.00021917,2]
[374980538,1753487448634,-1102.5,0.00021917,2]
[374980539,1753487448644,-2543.75,0.00021917,2]
[374980540,1753487448653,-3524.14,0.00021917,2]
[374980541,1753487448663,-400.0,0.00021917,2]
[374980542,1753487448672,-447.55,0.00021917,2]
[374980543,1753487448682,-1650.9,0.00021917,2]
[374980544,1753487448692,-400.0,0.00021917,2]
[374980545,1753487448702,-400.0,0.00021917,2]
[374980546,1753487448712,-400.0,0.00021917,2]
[374980547,1753487448722,-1305.84,0.00021917,2]
[374980548,1753487448731,-744.1,0.00021917,2]
[374980549,1753487448741,-400.0,0.00021917,2]
[374980550,1753487448751,-1086.14,0.00021917,2]
[374980551,1753487448760,-687.58,0.00021917,2]
[374980552,1753487448770,-1768.4,0.00021917,2]
[374980553,1753487448779,-1100.21,0.00021917,2]
[374980554,1753487448789,-400.0,0.00021917,2]
[374980555,1753487448799,-400.0,0.00021917,2]
[374980556,1753487448809,-1538.46,0.00021917,2]
[374980557,1753487448818,-400.0,0.00021917,2]
[374980558,1753487448828,-440.21,0.00021917,2]
[374980559,1753487448838,-400.0,0.00021917,2]
[374980560,1753487448847,-400.0,0.00021917,2]
[374980561,1753487448857,-425.04,0.00021917,2]
[374980562,1753487448867,-1057.8,0.00021917,2]
[374980563,1753487448876,-400.0,0.00021917,2]
[374980564,1753487448885,-400.0,0.00021917,2]
[374980565,1753487448895,-779.87,0.00021917,2]
[374980566,1753487448904,-400.0,0.00021917,2]
[374980567,1753487448914,-400.0,0.00021917,2]
[374980568,1753487448923,-454.17,0.00021917,2]
[374980569,1753487448933,-2873.26,0.00021917,2]
[374980570,1753487448943,-679.31,0.00021917,2]
[374980571,1753487448952,-400.0,0.00021917,2]
[374980572,1753487448962,-400.0,0.00021917,2]
[374980573,1753487448971,-1026.24,0.00021917,2]
[374980574,1753487448980,-400.0,0.00021917,2]
[374980575,1753487448990,-347.69047732,0.00021917,2]
[374980576,1753487448999,-488.12,0.00021917,2]
[374980577,1753487449009,-1129.19,0.00021917,2]
[374980578,1753487449020,-633.77,0.00021917,2]
[374980579,1753487449029,-400.0,0.00021917,2]
[374980580,1753487449039,-1591.96,0.00021917,2]
[374980581,1753487449048,-625.8,0.00021917,2]
[374980582,1753487449058,-400.0,0.00021917,2]
[374980583,1753487449067,-518.22,0.00021917,2]
[374980584,1753487449077,-400.0,0.00021917,2]
[374980585,1753487449086,-400.0,0.00021917,2]
[374980586,1753487449096,-400.0,0.00021917,2]
[374980587,1753487449106,-400.0,0.00021917,2]
[374980588,1753487449115,-730.3,0.00021917,2]
[374980589,1753487449125,-1172.68,0.00021917,2]
[374980590,1753487449136,-180.92764841,0.00021917,2]
[374980591,1753487449145,-400.0,0.00021917,2]
[374980592,1753487449155,-400.0,0.00021917,2]
[374980593,1753487449164,-561.96,0.00021917,2]
[374980594,1753487449174,-8261.62,0.00021917,2]
[374980595,1753487449183,-400.0,0.00021917,2]
[374980596,1753487449193,-227.54376364,0.00021917,2]
[374980597,1753487449202,-818.85,0.00021917,2]
[374980598,1753487449212,-400.0,0.00021917,2]
[374980599,1753487449221,-400.0,0.00021917,2]
[374980600,1753487449231,-3825.13,0.00021917,2]
[374980601,1753487449241,-400.0,0.00021917,2]
[374980602,1753487449251,-400.0,0.00021917,2]
[374980603,1753487449260,-2653.12,0.00021917,2]
[374980604,1753487449271,-400.0,0.00021917,2]
[374980605,1753487449280,-400.0,0.00021917,2]
[374980606,1753487449290,-400.0,0.00021917,2]
[374980607,1753487449300,-400.0,0.00021917,2]
[374980608,1753487449310,-4258.83,0.00021917,2]
[374980609,1753487449320,-492.63,0.00021917,2]
[374980610,1753487449330,-400.0,0.00021917,2]
[374980611,1753487449340,-439.2,0.00021917,2]
[374980612,1753487449350,-400.0,0.00021917,2]
[374980613,1753487449360,-1213.67,0.00021917,2]
[374980614,1753487449370,-947.52,0.00021917,2]
[374980615,1753487449380,-555.14,0.00021917,2]
[374980616,1753487449390,-400.0,0.00021917,2]
[374980617,1753487449400,-2679.28,0.00021917,2]
[374980618,1753487449409,-400.0,0.00021917,2]
[374980619,1753487449419,-1926.16,0.00021917,2]
[374980620,1753487449428,-2152.8,0.00021917,2]
[374980621,1753487449438,-400.0,0.00021917,2]
[374980622,1753487449448,-400.0,0.00021917,2]
[374980623,1753487449457,-1944.48,0.00021917,2]
[374980624,1753487449467,-400.0,0.00021917,2]
[374980625,1753487449478,-4856.21,0.00021917,2]
[374980626,1753487449487,-2643.86,0.00021917,2]
[374980627,1753487449498,-400.0,0.00021917,2]
[374980628,1753487449508,-400.0,0.00021917,2]
[374980629,1753487449519,-400.0,0.00021917,2]
[374980630,1753487449529,-482.09,0.00021917,2]
[374980631,1753487449539,-400.0,0.00021917,2]
[374980632,1753487449549,-1110.05,0.00021917,2]
[374980633,1753487449559,-400.0,0.00021917,2]
[374980634,1753487449569,-400.0,0.00021917,2]
[374980635,1753487449579,-624.87,0.00021917,2]
[374980636,1753487449589,-677.47,0.00021917,2]
[374980637,1753487449598,-852.93,0.00021917,2]
[374980638,1753487449608,-2077.58,0.00021917,2]
[374980639,1753487449618,-487.26575994,0.00021917,2]
[374980640,1753487449628,-400.0,0.00021917,2]
[374980641,1753487449639,-400.0,0.00021917,2]
[374980642,1753487449648,-400.0,0.00021917,2]
[374980643,1753487449658,-400.0,0.00021917,2]
[374980644,1753487449667,-400.0,0.00021917,2]
[374980645,1753487449677,-1910.94,0.00021917,2]
[374980646,1753487449687,-959.82,0.00021917,2]
[374980647,1753487449696,-400.0,0.00021917,2]
[374980648,1753487449706,-2834.54,0.00021917,2]
[374980649,1753487449716,-400.0,0.00021917,2]
[374980650,1753487449726,-1226.27,0.00021917,2]
[374980651,1753487449736,-400.0,0.00021917,2]
[374980652,1753487449745,-400.0,0.00021917,2]
[374980653,1753487449755,-735.03,0.00021917,2]
[374980654,1753487449766,-939.02,0.00021917,2]
[374980655,1753487449779,-2995.78,0.00021917,2]
[374980656,1753487449788,-400.0,0.00021917,2]
[374980657,1753487449798,-400.0,0.00021917,2]
[374980658,1753487449808,-400.0,0.00021917,2]
[374980659,1753487449819,-925.53,0.00021917,2]
[374980660,1753487449828,-400.0,0.00021917,2]
[374980661,1753487449839,-1759.74,0.00021917,2]
[374980662,1753487449849,-1546.66,0.00021917,2]
[374980663,1753487449964,-400.0,0.00021917,2]
[374980664,1753487449974,-505.66,0.00021917,2]
[374980665,1753487449986,-1677.64,0.00021917,2]
[374980666,1753487449997,-1315.58,0.00021917,2]
[374980667,1753487450007,-447.1,0.00021917,2]
[374980668,1753487450019,-1295.43,0.00021917,2]
[374980669,1753487450028,-400.0,0.00021917,2]
[374980670,1753487450037,-3235.13,0.00021917,2]
[374980671,1753487450047,-400.0,0.00021917,2]
[374980672,1753487450057,-1118.15,0.00021917,2]
[374980673,1753487450067,-1614.66,0.00021917,2]
[374980674,1753487450077,-480.0,0.00021917,2]
[374980675,1753487450087,-400.0,0.00021917,2]
[374980676,1753487450096,-400.0,0.00021917,2]
[374980677,1753487450106,-1513.8,0.00021917,2]
[374980678,1753487450115,-2852.96,0.00021917,2]
[374980679,1753487450124,-996.26,0.00021917,2]
[374980680,1753487450133,-150.36780877,0.00021917,2]
[374980681,1753487450143,-400.0,0.00021917,2]
[374980682,1753487450152,-3131.08,0.00021917,2]
[374980683,1753487450161,-400.0,0.00021917,2]
[374980684,1753487450170,-1365.5,0.00021917,2]
[374980685,1753487450179,-400.0,0.00021917,2]
[374980686,1753487450189,-7894.95,0.00021917,2]
[374980687,1753487450198,-400.0,0.00021917,2]
[374980688,1753487450209,-400.0,0.00021917,2]
[374980689,1753487450218,-9830.12,0.00021917,2]
[374980690,1753487450228,-400.0,0.00021917,2]
[374980691,1753487450237,-745.72,0.00021917,2]
[374980692,1753487450246,-491.44,0.00021917,2]
[374980693,1753487450256,-400.0,0.00021917,2]
[374980694,1753487450265,-811.05,0.00021917,2]
[374980695,1753487450275,-3399.79,0.00021917,2]
[374980696,1753487450284,-400.0,0.00021917,2]
[374980697,1753487450293,-400.0,0.00021917,2]
[374980698,1753487450302,-400.0,0.00021917,2]
[374980699,1753487450311,-400.0,0.00021917,2]
[374980700,1753487450320,-1956.18,0.00021917,2]
[374980701,1753487450329,-2283.05,0.00021917,2]
[374980702,1753487450339,-1301.82,0.00021917,2]
[374980703,1753487450348,-825.19,0.00021917,2]
[374980704,1753487450356,-400.0,0.00021917,2]
[374980705,1753487450366,-2376.98,0.00021917,2]
[374980706,1753487450375,-10866.87,0.00021917,2]
[374980707,1753487450384,-226.99191048,0.00021917,2]
[374980708,1753487450394,-5477.54,0.00021917,2]
[374980709,1753487450403,-1840.02,0.00021917,2]
[374980710,1753487450412,-1562.84,0.00021917,2]
[374980711,1753487450421,-400.0,0.00021917,2]
[374980712,1753487450431,-738.43,0.00021917,2]
[374980713,1753487450440,-420.31,0.00021917,2]
[374980714,1753487450449,-1123.84,0.00021917,2]
[374980715,1753487450459,-400.0,0.00021917,2]
[374980716,1753487450468,-400.0,0.00021917,2]
[374980717,1753487450477,-716.08,0.00021917,2]
[374980718,1753487450487,-400.0,0.00021917,2]
[374980719,1753487450496,-523.6,0.00021917,2]
[374980720,1753487450505,-1926.39,0.00021917,2]
[374980721,1753487450514,-602.77,0.00021917,2]
[374980722,1753487450525,-400.0,0.00021917,2]
[374980723,1753487450538,-20224.11,0.00021917,2]
[374980724,1753487450548,-400.0,0.00021917,2]
[374980725,1753487450557,-3381.72,0.00021917,2]
[374980726,1753487450566,-1170.15,0.00021917,2]
[374980727,1753487450578,-4517.74,0.00021917,2]
[374980728,1753487450587,-400.0,0.00021917,2]
[374980729,1753487450597,-400.0,0.00021917,2]
[374980730,1753487450607,-2332.18,0.00021917,2]
[374980731,1753487450616,-1112.5,0.00021917,2]
[374980732,1753487450626,-794.65,0.00021917,2]
[374980733,1753487450635,-400.0,0.00021917,2]
[374980734,1753487450645,-5963.18,0.00021917,2]
[374980735,1753487450655,-4863.14,0.00021917,2]
[374980736,1753487450664,-400.0,0.00021917,2]
[374980737,1753487450674,-555.25,0.00021917,2]
[374980738,1753487450683,-3760.77,0.00021917,2]
[374980739,1753487450692,-4977.16,0.00021917,2]
[374980740,1753487450703,-400.0,0.00021917,2]
[374980741,1753487450712,-2121.3,0.00021917,2]
[374980742,1753487450721,-400.0,0.00021917,2]
[374980743,1753487450731,-2592.17,0.00021917,2]
[374980744,1753487450741,-1443.6,0.00021917,2]
[374980745,1753487450751,-1416.1,0.00021917,2]
[374980746,1753487450760,-512.34,0.00021917,2]
[374980747,1753487450770,-400.0,0.00021917,2]
[374980748,1753487450780,-400.0,0.00021917,2]
[374980749,1753487450789,-1634.95,0.00021917,2]
[374980750,1753487450798,-400.0,0.00021917,2]
[374980751,1753487450807,-467.65,0.00021917,2]
[374980752,1753487450817,-1909.52,0.00021917,2]
[374980753,1753487450826,-453.74,0.00021917,2]
[374980754,1753487450835,-1325.03,0.00021917,2]
[374980755,1753487450845,-400.0,0.00021917,2]
[374980756,1753487450854,-9229.96,0.00021917,2]
[374980757,1753487450863,-400.0,0.00021917,2]
[374980758,1753487450873,-2860.21,0.00021917,2]
[374980759,1753487450882,-400.0,0.00021917,2]
[374980760,1753487450891,-400.0,0.00021917,2]
[374980761,1753487450902,-3080.08,0.00021917,2]
[374980762,1753487450911,-752.77,0.00021917,2]
[374980763,1753487450920,-5012.98,0.00021917,2]
[374980764,1753487450929,-400.0,0.00021917,2]
[374980765,1753487450938,-2922.47,0.00021917,2]
[374980766,1753487450947,-400.0,0.00021917,2]
[374980767,1753487450956,-400.0,0.00021917,2]
[374980768,1753487450965,-400.0,0.00021917,2]
[374980769,1753487450974,-1619.08,0.00021917,2]
[374980770,1753487450983,-3737.11,0.00021917,2]
[374980771,1753487450992,-2605.4,0.00021917,2]
[374980772,1753487451001,-903.9,0.00021917,2]
[374980773,1753487451011,-2728.1,0.00021917,2]
[374980774,1753487451021,-400.0,0.00021917,2]
[374980775,1753487451030,-993.54,0.00021917,2]
[374980776,1753487451039,-400.0,0.00021917,2]
[374980777,1753487451049,-1176.4,0.00021917,2]
[374980778,1753487451058,-400.0,0.00021917,2]
[374980779,1753487451067,-3328.48,0.00021917,2]
[374980780,1753487451076,-400.0,0.00021917,2]
[374980781,1753487451086,-400.0,0.00021917,2]
[374980782,1753487451095,-400.0,0.00021917,2]
[374980783,1753487451104,-4065.78,0.00021917,2]
[374980784,1753487451113,-966.04,0.00021917,2]
[374980785,1753487451123,-3402.97,0.00021917,2]
[374980786,1753487451131,-1038.32,0.00021917,2]
[374980787,1753487451141,-400.0,0.00021917,2]
[374980788,1753487451151,-6306.82,0.00021917,2]
[374980789,1753487451160,-400.0,0.00021917,2]
[374980790,1753487451170,-502.13,0.00021917,2]
[374980791,1753487451179,-710.18,0.00021917,2]
[374980792,1753487451188,-1145.87,0.00021917,2]
[374980793,1753487451198,-515.85,0.00021917,2]
[374980794,1753487451207,-400.0,0.00021917,2]
[374980795,1753487451216,-502.07,0.00021917,2]
[374980796,1753487451228,-1737.5,0.00021917,2]
[374980797,1753487451238,-3261.71,0.00021917,2]
[374980798,1753487451247,-6637.11,0.00021917,2]
[374980799,1753487451257,-512.1399986,0.00021917,2]
[374980800,1753487451267,-5736.76,0.00021917,2]
[374980801,1753487451277,-400.0,0.00021917,2]
[374980802,1753487451287,-1553.92,0.00021917,2]
[374980803,1753487451296,-779.81,0.00021917,2]
[374980804,1753487451306,-400.0,0.00021917,2]
[374980805,1753487451318,-400.0,0.00021917,2]
[374980806,1753487451328,-400.0,0.00021917,2]
[374980807,1753487451339,-4569.19,0.00021917,2]
[374980808,1753487451349,-400.0,0.00021917,2]
[374980809,1753487451358,-721.12,0.00021917,2]
[374980810,1753487451367,-1432.23,0.00021917,2]
[374980811,1753487451377,-7303.69,0.00021917,2]
[374980812,1753487451385,-1916.55,0.00021917,2]
[374980813,1753487451394,-868.24,0.00021917,2]
[374980814,1753487451403,-400.0,0.00021917,2]
[374980815,1753487451413,-10921.9,0.00021917,2]
[374980816,1753487451422,-400.0,0.00021917,2]
[374980817,1753487451431,-400.0,0.00021917,2]
[374980818,1753487451440,-15468.12,0.00021917,2]
[374980819,1753487451449,-2673.96,0.00021917,2]
[374980820,1753487451458,-875.12,0.00021917,2]
[374980821,1753487451467,-2223.7,0.00021917,2]
[374980822,1753487451476,-1808.12,0.00021917,2]
[374980823,1753487451486,-1808.12,0.00021917,2]
[374980824,1753487451495,-1870.62,0.00021917,2]
[374980825,1753487451505,-2877.77,0.00021917,2]
[374980826,1753487451514,-1808.12,0.00021917,2]
[374980827,1753487451525,-400.0,0.00021917,2]
[374980828,1753487451534,-1808.12,0.00021917,2]
[374980829,1753487451543,-1005.49,0.00021917,2]
[374980830,1753487451551,-1808.12,0.00021917,2]
[374980831,1753487451560,-400.0,0.00021917,2]
[374980832,1753487451568,-1808.12,0.00021917,2]
[374980833,1753487451577,-400.0,0.00021917,2]
[374980834,1753487451585,-400.0,0.00021917,2]
[374980835,1753487451593,-4751.46,0.00021917,2]
[374980836,1753487451603,-5463.31,0.00021917,2]
[374980837,1753487451612,-502.33186452,0.00021917,2]
[374980838,1753487451621,-400.0,0.00021917,2]
[374980839,1753487451631,-5079.12,0.00021917,2]
[374980840,1753487451641,-1375.44,0.00021917,2]
[374980841,1753487451650,-400.0,0.00021917,2]
[374980842,1753487451659,-692.1,0.00021917,2]
[374980843,1753487451668,-424.93,0.00021917,2]
[374980844,1753487451678,-400.0,0.00021917,2]
[374980845,1753487451687,-400.0,0.00021917,2]
[374980846,1753487451698,-400.0,0.00021917,2]
[374980847,1753487451707,-400.0,0.00021917,2]
[374980848,1753487451716,-400.0,0.00021917,2]
[374980849,1753487451726,-866.69,0.00021917,2]
[374980850,1753487451735,-32726.95,0.00021917,2]
[374980851,1753487451744,-3987.49,0.00021917,2]
[374980852,1753487451754,-2692.45,0.00021917,2]
[374980853,1753487451763,-400.0,0.00021917,2]
[374980854,1753487451772,-1441.05,0.00021917,2]
[374980855,1753487451782,-400.0,0.00021917,2]
[374980856,1753487451791,-400.0,0.00021917,2]
[374980857,1753487451800,-2563.89,0.00021917,2]
[374980858,1753487451809,-983.03,0.00021917,2]
[374980859,1753487451819,-400.0,0.00021917,2]
[374980860,1753487451828,-400.0,0.00021917,2]
[374980861,1753487451837,-400.0,0.00021917,2]
[374980862,1753487451846,-1602.17,0.00021917,2]
[374980863,1753487451856,-2625.21,0.00021917,2]
[374980864,1753487451865,-4851.07,0.00021917,2]
[374980865,1753487451874,-1156.93,0.00021917,2]
[374980866,1753487451883,-1408.84,0.00021917,2]
[374980867,1753487451892,-8293.27,0.00021917,2]
[374980868,1753487451902,-400.0,0.00021917,2]
[374980869,1753487451911,-4962.18,0.00021917,2]
[374980870,1753487451921,-1620.06,0.00021917,2]
[374980871,1753487451930,-400.0,0.00021917,2]
[374980872,1753487451939,-511.41,0.00021917,2]
[374980873,1753487451949,-2796.2,0.00021917,2]
[374980874,1753487451958,-2022.35,0.00021917,2]
[374980875,1753487451967,-1897.40757803,0.00021917,2]
[374980876,1753487452639,-280.28,0.00021917,2]
[374980877,1753487452728,-389.65242197,0.00021917,2]
[374980878,1753487452739,-4743.03,0.00021917,2]
[374980879,1753487452748,-400.0,0.00021917,2]
[374980880,1753487452757,-115.65885076,0.00021917,2]
[374980881,1753487452768,-705.18549997,0.00021917,2]
[374980882,1753487452781,-1176.2979456,0.00021917,2]
[374980883,1753487452828,-897.27770367,0.00021917,2]
[374980884,1753487452837,-1720.13,0.00021917,2]
[374980885,1753487452846,-2959.05,0.00021917,2]
[374980886,1753487452856,-2260.47959184,0.00021917,2]
[374980887,1753487455257,-941.9911,0.00021817,2]
[374980888,1753487455269,-1811.15040816,0.00021917,2]
[374980889,1753487455279,-400.0,0.00021917,2]
[374980890,1753487455288,-400.0,0.00021917,2]
[374980891,1753487455298,-400.0,0.00021917,2]
[374980892,1753487455307,-400.0,0.00021917,2]
[374980893,1753487455317,-7105.63,0.00021917,2]
[374980894,1753487455327,-400.0,0.00021917,2]
[374980895,1753487455336,-400.0,0.00021917,2]
[374980896,1753487455346,-2367.78,0.00021917,2]
[374980897,1753487455355,-400.0,0.00021917,2]
[374980898,1753487455365,-9478.8,0.00021917,2]
[374980899,1753487455375,-587.25,0.00021917,2]
[374980900,1753487455387,-2384.9,0.00021917,2]
[374980901,1753487455397,-1487.98,0.00021917,2]
[374980902,1753487455407,-2948.34,0.00021917,2]
[374980903,1753487455417,-400.0,0.00021917,2]
[374980904,1753487455427,-484.63,0.00021917,2]
[374980905,1753487455438,-646.2,0.00021917,2]
[374980906,1753487455448,-3743.83,0.00021917,2]
[374980907,1753487455458,-30.54409984,0.00021917,2]
[374980909,1753487571171,227.47,0.00013699,2]
[374980910,1753487603120,607.22988867,0.00027397,120]
[374980911,1753487951740,800.0,0.00026986,120]